[Event "5th Baskent University Open 2022"]
[Site "Ankara"]
[Date "2022.07.07"]
[Round "9.12"]
[White "Koksal, Ege"]
[Black "Citak, Selim"]
[Result "1/2-1/2"]
[ECO "A13"]
[WhiteElo "2356"]
[BlackElo "2176"]
[Annotator "TA"]
[PlyCount "43"]
[EventDate "2022.07.02"]
[EventType "swiss"]
[EventCountry "TUR"]
[SourceTitle "playchess.com"]
[Source "ChessBase"]
[SourceQuality "1"]
[TimeControl "5400+30"]

{[%evp 13,21,6,20,24,29,16,19,31,35,27]} 1. Nf3 {[%emt 0:01:00]} Nf6 {[%emt 0:01:00]} 2. c4 {[%emt 0:00:00]} e6 {[%emt 0:01:30]} 3. Nc3 {[%emt 0:00:00]} d5 {[%emt 0:00:30]} 4. e3 {[%emt 0:00:00]} Be7 {[%emt 0:00:30]} 5. b3 {[%emt 0:00:00]} O-O {[%emt 0:00:30]} 6. Bb2 {[%emt 0:00:30]} c5 {[%emt 0:00:30]} 7. cxd5 {[%emt 0:00:00]} exd5 {[%emt 0:01:30]} 8. d4 {[%emt 0:00:00] A13: English Opening: 1...e6.} Nc6 {[%emt 0:00:00]} 9. Be2 {[%emt 0:00:00]} cxd4 {[%emt 0:13:00] 9...Ne4 is becoming the main line.} 10. Nxd4 {[%emt 0:00:00]} Re8 {[%emt 0:02:30]} 11. O-O {[%emt 0:05:30] [#] Black got outplayed after the opening.  Weighted Error Value: White=0.00 (flawless) /Black=0.02 (flawless)} {Predecessor:} Bd6 $146 12. Nxc6 bxc6 13. Rc1 Bc7 14. Bf3 Qd6 15. g3 Bh3 16. Re1 Rad8 17. Qc2 Ba5 18. a3 c5 19. Red1 Bb6 20. Nxd5 Nxd5 21. Rxd5 Qh6 22. Rh5 {1-0 (22) Ozen,B (2369)-Kapitanchuk,T (2346) Chess.com INT 2021} 1/2-1/2

[Event "5th Baskent University Open 2022"]
[Site "Ankara"]
[Date "2022.07.07"]
[Round "9.13"]
[White "Yildirim, Ibrahim Halil"]
[Black "Primbetov, Marat"]
[Result "1-0"]
[ECO "B31"]
[WhiteElo "2106"]
[BlackElo "2186"]
[Annotator "RC"]
[PlyCount "102"]
[EventDate "2022.07.02"]
[EventType "swiss"]
[EventCountry "TUR"]
[SourceTitle "playchess.com"]
[Source "ChessBase"]
[SourceQuality "1"]
[TimeControl "5400+30"]

1. e4 {[%emt 0:01:00]} c5 {[%emt 0:07:00]} 2. Nf3 {[%emt 0:00:00]} Nc6 {[%emt 0:00:30]} 3. Bb5 {[%emt 0:00:00]} g6 {[%emt 0:02:30]} 4. O-O {[%emt 0:00:30]} Bg7 {[%emt 0:00:30]} 5. c3 {[%emt 0:00:30]} Nf6 {[%emt 0:00:00]} 6. Re1 {[%emt 0:00:00]} O-O {[%emt 0:01:00]} 7. d4 {[%emt 0:00:00]} cxd4 {[%emt 0:00:00]} 8. cxd4 {[%emt 0:00:30]} d5 {[%emt 0:00:00]} 9. e5 {[%emt 0:00:30]} Ne4 {[%emt 0:01:30]} 10. Bxc6 {[%emt 0:01:30]} bxc6 {[%emt 0:03:30]} 11. Be3 {[%emt 0:00:30]} f6 {[%emt 0:00:30]} 12. Qc1 {[%emt 0:03:30]} Qb6 {[%emt 0:00:30]} 13. Nc3 {[%emt 0:00:30]} Nxc3 {[%emt 0:04:30]} 14. Qxc3 {[%emt 0:00:30]} a5 {[%emt 0:00:30]} 15. Rac1 {[%emt 0:00:30]} Bd7 {[%emt 0:02:30]} 16. exf6 {[%emt 0:06:30]} exf6 {[%emt 0:00:30]} 17. Bf4 {[%emt 0:00:30]} Rfe8 {[%emt 0:00:30]} 18. Bd6 {[%emt 0:00:30]} Bh6 {[%emt 0:00:30]} 19. Rxe8+ {[%emt 0:00:30]} Rxe8 {[%emt 0:00:30]} 20. Re1 {[%emt 0:00:30]} Re6 {[%emt 0:00:30]} 21. Rxe6 {[%emt 0:00:30]} Bxe6 {[%emt 0:00:30]} 22. a4 {[%emt 0:00:30]} Qa6 {[%emt 0:00:30]} 23. Qb3 {[%emt 0:00:30]} Bc8 {[%emt 0:00:30]} 24. Qb8 {[%emt 0:00:30]} Qb7 {[%emt 0:00:30]} 25. Qxb7 {[%emt 0:00:30]} Bxb7 {[%emt 0:00:30]} 26. Bc7 {[%emt 0:00:30]} Bc1 {[%emt 0:00:30]} 27. b3 {[%emt 0:00:30]} Ba6 {[%emt 0:00:30]} 28. Bxa5 {[%emt 0:00:30]} Be2 {[%emt 0:00:30]} 29. Bb6 {[%emt 0:00:30]} Kf7 {[%emt 0:00:30]} 30. h3 {[%emt 0:00:30]} Ke6 {[%emt 0:00:30]} 31. Nh2 {[%emt 0:00:30]} Ba3 {[%emt 0:00:30]} 32. f3 {[%emt 0:00:30]} Ba6 {[%emt 0:00:30]} 33. Kf2 {[%emt 0:00:30]} Kd6 {[%emt 0:00:30]} 34. Nf1 {[%emt 0:00:30]} c5 {[%emt 1:10:58]} 35. Ne3 {[%emt 1:09:36]} Bd3 {[%emt 0:01:15]} 36. Ke1 {[%emt 0:01:37]} Bb4+ {[%emt 0:00:24]} 37. Kd1 {[%emt 0:00:42]} cxd4 {[%emt 0:01:05]} 38. Bxd4 {[%emt 0:00:23]} Ke6 {[%emt 0:00:34]} 39. Nc2 {[%emt 0:02:35]} Bd6 {[%emt 0:00:06]} 40. Bc3 {[%emt 0:03:10]} Bc5 {[%emt 0:00:26]} 41. b4 {[%emt 0:00:49]} Ba7 {[%emt 0:00:27]} 42. b5 {[%emt 0:01:05]} Bc4 {[%emt 0:00:37]} 43. Bd4 {[%emt 0:02:01]} Bb8 {[%emt 0:00:06]} 44. Kd2 {[%emt 0:01:14]} Bc7 {[%emt 0:00:46]} 45. b6 {[%emt 0:01:16]} Bd6 {[%emt 0:00:14]} 46. Kc3 {[%emt 0:00:09]} f5 {[%emt 0:00:26]} 47. Nb4 {[%emt 0:02:12]} Bg3 {[%emt 0:00:36]} 48. b7 {[%emt 0:01:23]} Kd7 {[%emt 0:01:19]} 49. Ba7 {[%emt 0:00:30]} Be1+ {[%emt 0:00:30]} 50. Kb2 {[%emt 0:00:30]} Ke6 {[%emt 0:00:30]} 51. Bd4 {[%emt 0:00:30]} Bxb4 {[%emt 0:00:30]} 1-0

[Event "5th Baskent University Open 2022"]
[Site "Ankara"]
[Date "2022.07.07"]
[Round "9.14"]
[White "Ipek, Egehan"]
[Black "Unver, Cumali"]
[Result "1-0"]
[ECO "A30"]
[WhiteElo "2196"]
[BlackElo "2046"]
[Annotator "RC"]
[PlyCount "93"]
[EventDate "2022.07.02"]
[EventType "swiss"]
[EventCountry "TUR"]
[SourceTitle "playchess.com"]
[Source "ChessBase"]
[SourceQuality "1"]
[TimeControl "5400+30"]

1. Nf3 {[%emt 0:01:00]} Nf6 {[%emt 0:02:00]} 2. c4 {[%emt 0:00:00]} g6 {[%emt 0:00:30]} 3. b3 {[%emt 0:00:00]} Bg7 {[%emt 0:00:30]} 4. Bb2 {[%emt 0:00:30]} O-O {[%emt 0:00:30]} 5. g3 {[%emt 0:00:30]} b6 {[%emt 0:01:30]} 6. Bg2 {[%emt 0:00:00]} Bb7 {[%emt 0:00:00]} 7. O-O {[%emt 0:00:00]} c5 {[%emt 0:01:00]} 8. d4 {[%emt 0:00:30]} cxd4 {[%emt 0:00:00]} 9. Qxd4 {[%emt 0:01:30]} Nc6 {[%emt 0:00:00]} 10. Qf4 {[%emt 0:00:30]} d5 {[%emt 0:03:30]} 11. Rd1 {[%emt 0:08:30]} Qc8 {[%emt 0:01:30]} 12. cxd5 {[%emt 0:07:30]} Nxd5 {[%emt 0:00:30]} 13. Qd2 {[%emt 0:00:00]} Nf6 {[%emt 0:00:30]} 14. Nc3 {[%emt 0:02:00]} Rd8 {[%emt 0:00:30]} 15. Qe1 {[%emt 0:00:30]} Qf5 {[%emt 0:10:30]} 16. e4 {[%emt 0:11:30]} Qh5 {[%emt 0:03:30]} 17. Qe2 {[%emt 0:04:30]} Nb4 {[%emt 0:04:30]} 18. Qc4 {[%emt 0:10:30]} Nc6 {[%emt 0:11:30]} 19. b4 {[%emt 0:09:30]} Ng4 {[%emt 0:06:30]} 20. h3 {[%emt 0:08:30]} Nge5 {[%emt 0:03:30]} 21. Nxe5 {[%emt 0:01:30]} Bxe5 {[%emt 0:00:30]} 22. f4 {[%emt 0:02:30]} Rd4 {[%emt 0:12:30]} 23. Rxd4 {[%emt 0:06:30]} Bxd4+ {[%emt 0:00:30]} 24. Kh2 {[%emt 0:00:00]} b5 {[%emt 0:00:30]} 25. Qb3 {[%emt 0:02:00]} Rd8 {[%emt 0:13:30]} 26. Nd5 {[%emt 0:07:02]} Qe2 {[%emt 0:02:30]} 27. Rb1 {[%emt 0:03:45]} e6 {[%emt 0:01:41]} 28. Bxd4 {[%emt 0:01:53]} Nxd4 {[%emt 0:00:29]} 29. Qc3 {[%emt 0:00:42]} Nf3+ {[%emt 0:02:12]} 30. Qxf3 {[%emt 0:00:47]} Qxf3 {[%emt 0:00:28]} 31. Bxf3 {[%emt 0:01:37]} exd5 {[%emt 0:00:15]} 32. exd5 {[%emt 0:01:33]} Rd7 {[%emt 0:01:23]} 33. Rd1 {[%emt 0:01:16]} Kf8 {[%emt 0:00:07]} 34. g4 {[%emt 0:02:46]} Ke7 {[%emt 0:00:24]} 35. d6+ {[%emt 0:01:03]} Kd8 {[%emt 0:00:02]} 36. Kg3 {[%emt 0:01:25]} Bxf3 {[%emt 0:00:30]} 37. Kxf3 {[%emt 0:00:30]} Rb7 {[%emt 0:00:30]} 38. Ke4 {[%emt 0:00:33]} Kd7 {[%emt 0:04:01]} 39. Ke5 {[%emt 0:01:34]} Rb6 {[%emt 0:00:06]} 40. Kf6 {[%emt 0:00:24]} Rc6 {[%emt 0:00:06]} 41. Kxf7 {[%emt 0:00:21]} Rc4 {[%emt 0:00:29]} 42. f5 {[%emt 0:00:54]} gxf5 {[%emt 0:00:35]} 43. gxf5 {[%emt 0:00:01]} Rxb4 {[%emt 0:02:52]} 44. f6 {[%emt 0:01:12]} Rh4 {[%emt 0:01:58]} 45. Rd3 {[%emt 0:00:41]} Rh6 {[%emt 0:00:06]} 46. Rg3 {[%emt 0:00:54]} b4 {[%emt 0:00:51]} 47. Kg7 {[%emt 0:00:11]} 1-0

[Event "5th Baskent University Open 2022"]
[Site "Ankara"]
[Date "2022.07.07"]
[Round "9.15"]
[White "Cansu, Batuhan"]
[Black "Cakiroglu, Metin"]
[Result "1/2-1/2"]
[ECO "A46"]
[WhiteElo "2083"]
[BlackElo "2068"]
[Annotator "RC"]
[PlyCount "83"]
[EventDate "2022.07.02"]
[EventType "swiss"]
[EventCountry "TUR"]
[SourceTitle "playchess.com"]
[Source "ChessBase"]
[SourceQuality "1"]
[TimeControl "5400+30"]

1. d4 {[%emt 0:01:00]} Nf6 {[%emt 0:06:00]} 2. Nf3 {[%emt 0:00:30]} e6 {[%emt 0:00:30]} 3. g3 {[%emt 0:00:30]} b5 {[%emt 0:00:30]} 4. Bg2 {[%emt 0:00:30]} Bb7 {[%emt 0:00:30]} 5. O-O {[%emt 0:00:00]} c5 {[%emt 0:00:00]} 6. Bg5 {[%emt 0:00:00]} h6 {[%emt 0:00:00]} 7. Bxf6 {[%emt 0:00:00]} Qxf6 {[%emt 0:00:00]} 8. e4 {[%emt 0:02:00]} g6 {[%emt 0:04:00]} 9. Re1 {[%emt 0:04:30]} Bg7 {[%emt 0:09:30]} 10. Nc3 {[%emt 0:03:30]} a6 {[%emt 0:01:30]} 11. dxc5 {[%emt 0:06:30]} Qe7 {[%emt 0:00:30]} 12. Nd5 {[%emt 0:00:30]} Bxd5 {[%emt 0:06:30]} 13. exd5 {[%emt 0:00:30]} Qxc5 {[%emt 0:01:30]} 14. dxe6 {[%emt 0:02:30]} dxe6 {[%emt 0:02:30]} 15. Ng5 {[%emt 0:09:30]} Ra7 {[%emt 0:01:30]} 16. Nxe6 {[%emt 0:16:30]} fxe6 {[%emt 0:02:30]} 17. Rxe6+ {[%emt 0:00:00]} Re7 {[%emt 0:01:30]} 18. Qe2 {[%emt 0:00:00]} Rf8 {[%emt 0:03:30]} 19. Re1 {[%emt 0:04:30]} Rff7 {[%emt 0:00:00]} 20. Qe4 {[%emt 0:08:30]} Kd8 {[%emt 0:08:00]} 21. Rxe7 {[%emt 0:02:30]} Rxe7 {[%emt 0:00:30]} 22. Rd1+ {[%emt 0:02:30]} Rd7 {[%emt 0:01:30]} 23. Rxd7+ {[%emt 0:00:30]} Nxd7 {[%emt 0:00:30]} 24. Qxg6 {[%emt 0:02:30]} Bxb2 {[%emt 0:00:30]} 25. Qxa6 {[%emt 0:01:30]} Bd4 {[%emt 0:01:30]} 26. Qa5+ {[%emt 0:04:30]} Nb6 {[%emt 0:01:30]} 27. Qd2 {[%emt 0:00:00]} Nc4 {[%emt 0:01:30]} 28. Qf4 {[%emt 0:00:00]} Ne5 {[%emt 0:03:30]} 29. Be4 {[%emt 0:00:30]} Kc7 {[%emt 0:02:30]} 30. Kg2 {[%emt 0:00:30]} h5 {[%emt 0:01:30]} 31. Bd3 {[%emt 0:06:30]} Kb6 {[%emt 0:00:30]} 32. Qf6+ {[%emt 0:00:30]} Ka5 {[%emt 0:00:30]} 33. Qd8+ {[%emt 0:01:30]} Kb4 {[%emt 0:00:30]} 34. a3+ {[%emt 0:01:30]} Kxa3 {[%emt 0:00:30]} 35. Qa5+ {[%emt 0:00:30]} Kb2 {[%emt 0:00:30]} 36. Qxb5+ {[%emt 0:00:00]} Qxb5 {[%emt 0:00:00]} 37. Bxb5 {[%emt 0:00:00]} Kxc2 {[%emt 0:00:00]} 38. Be8 {[%emt 0:00:30]} Ng4 {[%emt 0:00:30]} 39. Bxh5 {[%emt 0:01:30]} Nxf2 {[%emt 0:00:30]} 40. Kf3 {[%emt 0:00:30]} Kd3 {[%emt 0:01:30]} 41. g4 {[%emt 0:00:30]} Nxg4 {[%emt 0:00:30]} 42. Bxg4 {[%emt 0:00:30]} 1/2-1/2

[Event "5th Baskent University Open 2022"]
[Site "Ankara"]
[Date "2022.07.07"]
[Round "9.16"]
[White "Khoder, Akram"]
[Black "Kocak, Can"]
[Result "1-0"]
[ECO "E69"]
[WhiteElo "2038"]
[BlackElo "2057"]
[Annotator "RC"]
[PlyCount "139"]
[EventDate "2022.07.02"]
[EventType "swiss"]
[EventCountry "TUR"]
[SourceTitle "playchess.com"]
[Source "ChessBase"]
[SourceQuality "1"]
[TimeControl "5400+30"]

1. d4 {[%emt 0:01:00]} d6 {[%emt 0:01:00]} 2. Nf3 {[%emt 0:00:30]} g6 {[%emt 0:00:30]} 3. g3 {[%emt 0:00:30]} Bg7 {[%emt 0:00:30]} 4. Bg2 {[%emt 0:00:30]} Nf6 {[%emt 0:00:30]} 5. c4 {[%emt 0:00:00]} O-O {[%emt 0:00:00]} 6. Nc3 {[%emt 0:00:00]} Nbd7 {[%emt 0:00:00]} 7. O-O {[%emt 0:00:30]} e5 {[%emt 0:00:30]} 8. e4 {[%emt 0:00:30]} c6 {[%emt 0:00:30]} 9. h3 {[%emt 0:00:30]} exd4 {[%emt 0:00:30]} 10. Nxd4 {[%emt 0:00:30]} Re8 {[%emt 0:00:30]} 11. Re1 {[%emt 0:00:00]} Nc5 {[%emt 0:00:00]} 12. Qc2 {[%emt 0:00:00]} a5 {[%emt 0:00:00]} 13. Be3 {[%emt 0:00:00]} a4 {[%emt 0:00:00]} 14. Rad1 {[%emt 0:00:00]} Qa5 {[%emt 0:01:00]} 15. f4 {[%emt 0:00:00]} Qa6 {[%emt 0:06:30]} 16. b3 {[%emt 0:11:00]} Qa5 {[%emt 0:01:30]} 17. Bf2 {[%emt 0:03:30]} Nfd7 {[%emt 0:05:30]} 18. f5 {[%emt 0:27:30]} Qb4 {[%emt 0:03:30]} 19. Nce2 {[%emt 0:02:30]} axb3 {[%emt 0:03:30]} 20. axb3 {[%emt 0:00:30]} Ra3 {[%emt 0:00:30]} 21. Rb1 {[%emt 0:00:30]} Ne5 {[%emt 0:08:30]} 22. Red1 {[%emt 0:00:30]} Qb6 {[%emt 0:18:30]} 23. Nf4 {[%emt 0:18:30]} Qa6 {[%emt 0:01:30]} 24. Rd2 {[%emt 0:01:30]} Bh6 {[%emt 0:04:30]} 25. Nde2 {[%emt 0:03:30]} Bf8 {[%emt 0:10:30]} 26. Bd4 {[%emt 0:11:58]} Qa8 {[%emt 0:00:30]} 27. Nc3 {[%emt 0:01:32]} Bh6 {[%emt 0:04:30]} 28. Kh2 {[%emt 0:00:23]} Bg7 {[%emt 0:01:30]} 29. Nd1 {[%emt 0:01:34]} Qb8 {[%emt 0:07:30]} 30. Ne3 {[%emt 0:01:54]} b5 {[%emt 0:01:30]} 31. cxb5 {[%emt 0:03:12]} Qxb5 {[%emt 0:00:30]} 32. Nc4 {[%emt 0:01:10]} Nxc4 {[%emt 0:00:36]} 33. bxc4 {[%emt 0:00:30]} Qa4 {[%emt 0:00:24]} 34. Qxa4 {[%emt 0:02:08]} Rxa4 {[%emt 0:00:30]} 35. Bxg7 {[%emt 0:00:28]} Kxg7 {[%emt 0:00:00]} 36. Rxd6 {[%emt 0:02:27]} Nxe4 {[%emt 0:01:00]} 37. f6+ {[%emt 0:00:42]} Nxf6 {[%emt 0:00:46]} 38. Rxc6 {[%emt 0:00:35]} Bf5 {[%emt 0:00:56]} 39. Rb2 {[%emt 0:00:34]} Rc8 {[%emt 0:04:18]} 40. Rxc8 {[%emt 0:02:29]} Bxc8 {[%emt 0:00:30]} 41. c5 {[%emt 0:00:30]} Rc4 {[%emt 0:00:00]} 42. c6 {[%emt 0:00:00]} Bf5 {[%emt 0:00:36]} 43. Rb6 {[%emt 0:00:20]} Be4 {[%emt 0:04:45]} 44. Bxe4 {[%emt 0:01:02]} Nxe4 {[%emt 0:00:07]} 45. Nd5 {[%emt 0:01:06]} Nf6 {[%emt 0:00:59]} 46. Ne7 {[%emt 0:00:23]} Kf8 {[%emt 0:03:27]} 47. Rb7 {[%emt 0:01:12]} Rc2+ {[%emt 0:00:30]} 48. Kg1 {[%emt 0:00:00]} Ne8 {[%emt 0:00:00]} 49. Kf1 {[%emt 0:01:24]} Nd6 {[%emt 0:01:27]} 50. Rc7 {[%emt 0:00:30]} Rc5 {[%emt 0:02:18]} 51. Rd7 {[%emt 0:01:42]} Nf5 {[%emt 0:00:31]} 52. Nxf5 {[%emt 0:00:47]} Rxf5+ {[%emt 0:00:13]} 53. Ke2 {[%emt 0:00:17]} Rc5 {[%emt 0:00:30]} 54. c7 {[%emt 0:00:00]} Kg7 {[%emt 0:00:21]} 55. Kd3 {[%emt 0:00:00]} h5 {[%emt 0:04:10]} 56. Kd4 {[%emt 0:00:24]} Rc1 {[%emt 0:00:04]} 57. Kd5 {[%emt 0:00:25]} g5 {[%emt 0:00:05]} 58. Kd6 {[%emt 0:00:24]} Kf6 {[%emt 0:00:30]} 59. Rd8 {[%emt 0:00:00]} Rd1+ {[%emt 0:00:02]} 60. Kc6 {[%emt 0:00:26]} Rc1+ {[%emt 0:00:30]} 61. Kb6 {[%emt 0:00:00]} Rb1+ {[%emt 0:00:46]} 62. Ka5 {[%emt 0:00:00]} Rc1 {[%emt 0:00:43]} 63. c8=Q {[%emt 0:00:27]} Rxc8 {[%emt 0:00:30]} 64. Rxc8 {[%emt 0:00:00]} Kf5 {[%emt 0:00:00]} 65. Kb4 {[%emt 0:00:10]} g4 {[%emt 0:00:00]} 66. Rc5+ {[%emt 0:00:08]} Ke4 {[%emt 0:00:09]} 67. Rxh5 {[%emt 0:00:30]} gxh3 {[%emt 0:00:00]} 68. Rxh3 {[%emt 0:00:17]} Kf3 {[%emt 0:00:13]} 69. Rh7 {[%emt 0:00:30]} f5 {[%emt 0:00:30]} 70. Rg7 {[%emt 0:00:30]} 1-0

[Event "5th Baskent University Open 2022"]
[Site "Ankara"]
[Date "2022.07.07"]
[Round "9.17"]
[White "Eke, Salih"]
[Black "Primbetov, Kazbek"]
[Result "1-0"]
[ECO "A50"]
[WhiteElo "2195"]
[BlackElo "2147"]
[Annotator "RC"]
[PlyCount "75"]
[EventDate "2022.07.02"]
[EventType "swiss"]
[EventCountry "TUR"]
[SourceTitle "playchess.com"]
[Source "ChessBase"]
[SourceQuality "1"]
[TimeControl "5400+30"]

1. d4 {[%emt 0:01:00]} Nf6 {[%emt 0:08:00]} 2. c4 {[%emt 0:00:30]} b6 {[%emt 0:00:30]} 3. Nf3 {[%emt 0:00:00]} Bb7 {[%emt 0:00:30]} 4. g3 {[%emt 0:00:00]} c5 {[%emt 0:00:00]} 5. d5 {[%emt 0:00:00]} b5 {[%emt 0:00:00]} 6. b3 {[%emt 0:01:00]} g6 {[%emt 0:05:30]} 7. Bg2 {[%emt 0:00:00]} Bg7 {[%emt 0:00:30]} 8. Bb2 {[%emt 0:00:00]} bxc4 {[%emt 0:00:30]} 9. bxc4 {[%emt 0:00:30]} O-O {[%emt 0:00:30]} 10. O-O {[%emt 0:06:30]} d6 {[%emt 0:00:00]} 11. Nbd2 {[%emt 0:00:30]} Nbd7 {[%emt 0:00:00]} 12. e4 {[%emt 0:00:00]} Rb8 {[%emt 0:08:30]} 13. Qc2 {[%emt 0:01:00]} Ba6 {[%emt 0:08:30]} 14. Rab1 {[%emt 0:00:30]} Nb6 {[%emt 0:25:30]} 15. e5 {[%emt 0:03:30]} Nfxd5 {[%emt 0:01:30]} 16. cxd5 {[%emt 0:01:30]} Bxf1 {[%emt 0:00:00]} 17. Nxf1 {[%emt 0:01:30]} Nxd5 {[%emt 0:00:00]} 18. exd6 {[%emt 0:00:30]} Qxd6 {[%emt 0:25:05]} 19. Bxg7 {[%emt 0:00:30]} Kxg7 {[%emt 0:00:11]} 20. Rd1 {[%emt 0:01:30]} Rfd8 {[%emt 0:01:33]} 21. Qc1 {[%emt 0:04:30]} Qc7 {[%emt 0:07:39]} 22. Ng5 {[%emt 0:00:30]} Nf6 {[%emt 0:00:32]} 23. Rxd8 {[%emt 0:01:30]} Rxd8 {[%emt 0:00:15]} 24. Qc4 {[%emt 0:00:30]} e5 {[%emt 0:01:30]} 25. Ne3 {[%emt 0:01:30]} h6 {[%emt 0:00:21]} 26. Nf3 {[%emt 0:04:30]} e4 {[%emt 0:00:30]} 27. Nh4 {[%emt 0:00:00]} Qe5 {[%emt 0:00:49]} 28. Bf1 {[%emt 0:00:00]} Rd2 {[%emt 0:01:42]} 29. Qa6 {[%emt 0:00:30]} Qe6 {[%emt 0:03:39]} 30. Qxa7 {[%emt 0:01:30]} Qxa2 {[%emt 0:00:26]} 31. Qe7 {[%emt 0:00:30]} Qe6 {[%emt 0:00:59]} 32. Qxc5 {[%emt 0:00:30]} h5 {[%emt 0:00:47]} 33. Qg5 {[%emt 0:00:30]} Kf8 {[%emt 0:00:30]} 34. Qh6+ {[%emt 0:00:30]} Ke8 {[%emt 0:00:13]} 35. Nef5 {[%emt 0:01:30]} Qd5 {[%emt 0:00:42]} 36. Qh8+ {[%emt 0:00:30]} Kd7 {[%emt 0:00:04]} 37. Qxf6 {[%emt 0:00:30]} gxf5 {[%emt 0:00:01]} 38. Nxf5 {[%emt 0:00:30]} 1-0

[Event "5th Baskent University Open 2022"]
[Site "Ankara"]
[Date "2022.07.07"]
[Round "9.18"]
[White "Cevizci, Yusuf Baran"]
[Black "Yerden, Huseyin Eren"]
[Result "0-1"]
[ECO "C02"]
[WhiteElo "2144"]
[BlackElo "2050"]
[Annotator "RC"]
[PlyCount "96"]
[EventDate "2022.07.02"]
[EventType "swiss"]
[EventCountry "TUR"]
[SourceTitle "playchess.com"]
[Source "ChessBase"]
[SourceQuality "1"]
[TimeControl "5400+30"]

1. e4 {[%emt 0:01:00]} c5 {[%emt 0:01:00]} 2. c3 {[%emt 0:00:30]} e6 {[%emt 0:00:30]} 3. d4 {[%emt 0:00:00]} d5 {[%emt 0:00:00]} 4. e5 {[%emt 0:00:00]} Nc6 {[%emt 0:00:00]} 5. Nf3 {[%emt 0:00:30]} Qb6 {[%emt 0:00:30]} 6. Na3 {[%emt 0:00:00]} cxd4 {[%emt 0:00:30]} 7. cxd4 {[%emt 0:00:00]} Bb4+ {[%emt 0:03:30]} 8. Bd2 {[%emt 0:00:00]} a6 {[%emt 0:00:30]} 9. Nc2 {[%emt 0:00:00]} Bxd2+ {[%emt 0:01:30]} 10. Qxd2 {[%emt 0:00:00]} Nge7 {[%emt 0:00:30]} 11. Bd3 {[%emt 0:00:00]} h6 {[%emt 0:00:30]} 12. O-O {[%emt 0:00:30]} Bd7 {[%emt 0:00:30]} 13. Rab1 {[%emt 0:00:30]} Rc8 {[%emt 0:00:30]} 14. b4 {[%emt 0:02:30]} Na7 {[%emt 0:02:30]} 15. Qf4 {[%emt 0:04:30]} Bb5 {[%emt 0:01:30]} 16. Bxb5+ {[%emt 0:03:30]} Nxb5 {[%emt 0:01:30]} 17. Ne3 {[%emt 0:00:30]} Nc3 {[%emt 0:01:30]} 18. Rb2 {[%emt 0:00:30]} a5 {[%emt 0:04:30]} 19. Qg4 {[%emt 0:05:30]} Ng6 {[%emt 0:03:30]} 20. Nh4 {[%emt 0:08:30]} h5 {[%emt 0:03:30]} 21. Qh3 {[%emt 0:03:30]} Nf4 {[%emt 0:02:30]} 22. Qf3 {[%emt 0:00:30]} Qxd4 {[%emt 0:00:30]} 23. bxa5 {[%emt 0:01:30]} g5 {[%emt 0:09:30]} 24. g3 {[%emt 0:03:30]} Nce2+ {[%emt 0:01:30]} 25. Rxe2 {[%emt 0:00:30]} Nxe2+ {[%emt 0:00:30]} 26. Qxe2 {[%emt 0:00:30]} gxh4 {[%emt 0:00:30]} 27. Qb5+ {[%emt 0:00:00]} Kf8 {[%emt 0:00:00]} 28. Qxb7 {[%emt 0:00:00]} Kg7 {[%emt 0:00:00]} 29. Qe7 {[%emt 0:00:30]} Qxe5 {[%emt 0:03:30]} 30. Qxh4 {[%emt 0:00:00]} Qf6 {[%emt 0:01:30]} 31. Qb4 {[%emt 0:01:00]} Rhd8 {[%emt 0:02:30]} 32. a6 {[%emt 0:00:30]} d4 {[%emt 0:00:30]} 33. Nc4 {[%emt 0:00:30]} d3 {[%emt 0:07:30]} 34. Nd6 {[%emt 0:03:30]} Ra8 {[%emt 0:05:30]} 35. Qb7 {[%emt 0:00:30]} e5 {[%emt 0:04:30]} 36. Ne4 {[%emt 0:01:30]} Qxa6 {[%emt 0:00:30]} 37. Qe7 {[%emt 0:00:30]} Re8 {[%emt 0:00:00]} 38. Qg5+ {[%emt 0:00:30]} Qg6 {[%emt 0:00:00]} 39. Qe3 {[%emt 0:00:00]} Red8 {[%emt 0:04:30]} 40. Nc5 {[%emt 0:01:00]} Rd5 {[%emt 0:00:30]} 41. Rd1 {[%emt 0:00:30]} Rxa2 {[%emt 0:03:30]} 42. Ne4 {[%emt 0:01:30]} Re2 {[%emt 0:00:30]} 43. Nc5 {[%emt 0:00:30]} Ra2 {[%emt 0:00:30]} 44. Rxd3 {[%emt 0:00:30]} Rxc5 {[%emt 0:00:30]} 45. Qxc5 {[%emt 0:00:30]} Qxd3 {[%emt 0:00:30]} 46. Qxe5+ {[%emt 0:00:30]} Kh7 {[%emt 0:00:30]} 47. Qxh5+ {[%emt 0:00:30]} Kg7 {[%emt 0:00:30]} 48. Qe5+ {[%emt 0:00:30]} Kg6 {[%emt 0:00:30]} 0-1

[Event "5th Baskent University Open 2022"]
[Site "Ankara"]
[Date "2022.07.07"]
[Round "9.21"]
[White "Metin, Enis"]
[Black "Yildiz, Tunahan"]
[Result "1-0"]
[ECO "C02"]
[WhiteElo "1750"]
[BlackElo "1671"]
[Annotator "NA RC COMBH"]
[PlyCount "65"]
[EventDate "2022.07.02"]
[EventType "swiss"]
[EventCountry "TUR"]
[SourceTitle "playchess.com"]
[Source "ChessBase"]
[SourceQuality "1"]
[TimeControl "5400+30"]

1. e4 {[%emt 0:01:00]} c5 {[%emt 0:01:00]} 2. Nf3 {[%emt 0:00:00]} e6 {[%emt 0:00:30]} 3. c3 {[%emt 0:00:00]} Ne7 {[%emt 0:00:00]} 4. d4 {[%emt 0:00:30]} cxd4 {[%emt 0:01:00]} 5. cxd4 {[%emt 0:00:30]} d5 {[%emt 0:00:30]} 6. e5 {[%emt 0:00:30]} Nf5 {[%emt 0:00:30]} 7. Bd3 {[%emt 0:01:30]} Nc6 {[%emt 0:00:30]} 8. Bxf5 {[%emt 0:02:30]} exf5 {[%emt 0:00:00]} 9. O-O {[%emt 0:00:30]} Be7 {[%emt 0:03:00]} 10. Nc3 {[%emt 0:02:30]} g5 {[%emt 0:13:30]} 11. Nxg5 {[%emt 0:10:30]} Bxg5 {[%emt 0:06:30]} 12. Bxg5 {[%emt 0:00:30]} Qxg5 {[%emt 0:00:30]} 13. Nxd5 {[%emt 0:00:00]} Qd8 {[%emt 0:11:30]} 14. Nf6+ {[%emt 0:00:00]} Kf8 {[%emt 0:07:30]} 15. Qd2 {[%emt 0:03:30]} h6 {[%emt 0:04:30]} 16. Rad1 {[%emt 0:01:30]} Be6 {[%emt 0:02:30]} 17. Qf4 {[%emt 0:00:30]} Ne7 {[%emt 0:05:30]} 18. d5 {[%emt 0:01:30]} Bc8 {[%emt 0:00:30]} 19. e6 {[%emt 0:22:30]} Kg7 {[%emt 0:14:30]} 20. Qe5 {[%emt 0:01:30]} Kg6 {[%emt 0:04:30]} 21. h4 {[%emt 0:01:30]} h5 {[%emt 0:07:55]} 22. Qg3+ {[%emt 0:01:30]} Kxf6 {[%emt 0:00:42]} 23. Qg5+ {[%emt 0:00:30]} Ke5 {[%emt 0:00:00]} 24. d6 {[%emt 0:00:00]} Nd5 {[%emt 0:01:34]} 25. Rfe1+ {[%emt 0:01:00]} Kxd6 {[%emt 0:00:06]} 26. Rxd5+ {[%emt 0:00:00]} Kxd5 {[%emt 0:00:30]} 27. Rd1+ {[%emt 0:00:00]} Kxe6 {[%emt 0:00:47]} 28. Rxd8 {[%emt 0:00:30]} Rxd8 {[%emt 0:00:22]} 29. Qxd8 {[%emt 0:00:00]} b6 {[%emt 0:00:45]} 30. Qc7 {[%emt 0:00:00]} Bd7 {[%emt 0:00:52]} 31. Qc4+ {[%emt 0:00:30]} Kf6 {[%emt 0:01:52]} 32. Qd5 {[%emt 0:00:30]} Rd8 {[%emt 0:00:30]} 33. Qd6+ {[%emt 0:00:00]} 1-0